lending/lending_fUSD_20240928
["ID","MTS","AMOUNT","RATE_DAILY","PERIOD"]
[339391784,1727549432447,-447.88231529,0.0001258,2]
[339391786,1727549432458,-6423.88203264,0.0001258,2]
[339391794,1727549438278,-299.58797889,0.0001258,2]
[339391795,1727549438290,-5521.38092925,0.0001258,2]
[339391796,1727549438299,-179.45025,0.00012635,2]
[339391797,1727549438308,-420.0,0.00012649,2]
[339391798,1727549438317,-467.388,0.00012709,2]
[339391799,1727549438327,-187.863,0.00012709,2]
[339391800,1727549438336,-180.0,0.0001273,2]
[339391801,1727549438345,-500.0,0.00012768,2]
[339391802,1727549438354,-150.0,0.0001278,2]
[339391803,1727549438364,-980.17405002,0.0001278,2]
[339391804,1727549438373,-4207.71424874,0.0001279,2]
[339391805,1727549438384,-10935.53785126,0.0001279,2]
[339391806,1727549438393,-2703.8681,0.0001279,2]
[339391807,1727549438402,-500.0,0.0001279,2]
[339391808,1727549438411,-178.7496791,0.00012791,2]
[339391809,1727549438420,-179.45025,0.00012791,2]
[339391810,1727549438430,-169.894462,0.00012791,2]
[339391811,1727549438440,-150.0,0.00012795,2]
[339391812,1727549438449,-1000.0,0.000128,2]
[339391813,1727549438458,-159.93,0.00012809,2]
[339391814,1727549438467,-178.74967907,0.00012827,2]
[339391815,1727549438476,-178.74967907,0.00012864,2]
[339391816,1727549438485,-500.0,0.00012889,2]
[339391817,1727549438494,-613.13,0.00012889,2]
[339391818,1727549438503,-500.0,0.00012889,2]
[339391819,1727549438511,-351.80154214,0.00012889,2]
[339391820,1727549438522,-150.76986783,0.00012889,2]
[339391821,1727549438533,-5000.0,0.0001289,3]
[339391822,1727549438544,-14353.38635072,0.0001289,3]
[339391823,1727549438557,-18958.69146001,0.0001289,3]
[339391832,1727549440122,-4355.21274461,0.0001289,3]
[339391833,1727549440134,-1318.245,0.0001289,3]
[339391834,1727549440165,-256.28036634,0.0001289,3]
[339391890,1727549446152,-552.86,0.0001289,3]
[339391891,1727549446443,-624.09688597,0.0001289,3]
[339391892,1727549597199,216.8,0.00010039,2]
[339391893,1727549597382,200.0,0.00020787,120]
[339391895,1727550137582,219.49,9.93e-05,2]
[339391896,1727550286673,150.0,9.831e-05,2]
[339391897,1727550299862,2653.40258575,0.00022,120]
[339391898,1727550329957,167.35,0.00010959,2]
[339391916,1727550632347,-230.27365888,0.00011589,2]
[339391917,1727550632357,-150.0,0.00011589,2]
[339391918,1727550632367,-300.0,0.00011787,2]
[339391919,1727550632377,-13412.20309623,0.00011788,2]
[339391920,1727550632388,-459.0409261,0.00011788,2]
[339391921,1727550632399,-7171.43597767,0.00011788,2]
[339391922,1727550632409,-154.52,0.00011819,2]
[339391923,1727550632418,-500.0,0.00011827,2]
[339391924,1727550632427,-150.0,0.00011833,2]
[339391925,1727550632437,-452.48,0.00011835,2]
[339391926,1727550632447,-1000.0,0.00011838,2]
[339391927,1727550632461,-250.0,0.00011853,2]
[339391928,1727550632471,-250.0,0.00011853,2]
[339391929,1727550632480,-227.27,0.00011866,2]
[339391930,1727550632491,-178.86,0.00011874,2]
[339391931,1727550632500,-219.49,0.00012194,2]
[339391932,1727550632509,-158.159082,0.0001248,2]
[339391933,1727550632519,-3612.2717,0.0001279,2]
[339391934,1727550632529,-4899.9963,0.0001279,2]
[339391935,1727550632538,-464.179,0.0001279,2]
[339391936,1727550632549,-185.722,0.0001279,2]
[339391937,1727550632558,-956.03725703,0.0001279,2]
[339391938,1727550632568,-13878.4121,0.0001279,2]
[339391939,1727550632577,-511.818,0.0001279,2]
[339391940,1727550632586,-500.0,0.0001279,2]
[339391941,1727550632595,-214.65479573,0.00012791,2]
[339391942,1727550632604,-150.0,0.00012795,2]
[339391943,1727550632614,-165.67827755,0.000128,2]
[339391944,1727550632625,-214.65479573,0.000128,2]
[339391945,1727550632634,-1174.0,0.000128,2]
[339391946,1727550632645,-956.037257,0.00012802,2]
[339391947,1727550632656,-956.037257,0.00012814,2]
[339391948,1727550632665,-956.037257,0.00012827,2]
[339391949,1727550632674,-956.037257,0.00012839,2]
[339391950,1727550632683,-956.037257,0.00012851,2]
[339391951,1727550632693,-956.037257,0.00012863,2]
[339391952,1727550632702,-5965.97498124,0.0001287,2]
[339391953,1727550632711,-956.037257,0.00012876,2]
[339391954,1727550632721,-62545.62867999,0.00012888,2]
[339391955,1727550632732,-16479.99999735,0.00012888,2]
[339391957,1727550632745,-69804.31158985,0.00012888,2]
[339391959,1727550632755,-1012.2128544,0.00012888,2]
[339391961,1727550632766,-1500.0,0.00012888,2]
[339391962,1727550632778,-707.97523062,0.00012888,2]
[339391975,1727550638430,-1102.07747495,0.0001263,2]
[339391977,1727550638440,-129.68627134,0.00012888,2]
[339391986,1727550638552,-8253.84472466,0.00012888,2]
[339391987,1727550638563,-1818.34711936,0.00012888,2]
[339391988,1727550638574,-1753.86217904,0.00012888,2]
[339391989,1727550638586,-364.55288824,0.00012888,2]
[339391990,1727550638732,-1000.0,0.00012888,2]
[339391991,1727550638743,-3365.95,0.00012888,2]
[339391993,1727550640577,-4437.99966582,0.00012888,2]
[339391994,1727550640598,-1297.0,0.00012888,2]
[339391995,1727550640616,-64428.46594355,0.00012888,2]
[339391996,1727550640626,-956.037257,0.00012888,2]
[339391997,1727550640869,-143863.05454294,0.00012888,2]
[339391998,1727550640880,-82784.50090533,0.00012888,2]
[339392000,1727550640890,-256.00579379,0.00012889,2]
[339392002,1727550640899,-500.0,0.00012889,2]
[339392004,1727550640909,-566.75,0.00012889,2]
[339392006,1727550640919,-326.1655072,0.0001289,2]
[339392008,1727550640928,-614.33468198,0.0001289,2]
[339392010,1727550640938,-74066.8713318,0.0001289,3]
[339392012,1727550640949,-834.30484756,0.0001289,3]
[339392016,1727550640979,-40435.81690446,0.0001289,3]
[339392042,1727550643353,-116260.0,0.0001289,3]
[339392045,1727550643364,-127280.0,0.0001289,3]
[339392053,1727550643463,-5659.71883478,0.0001289,3]
[339392054,1727550643474,-2851.40714027,0.0001289,3]
[339392055,1727550643485,-87737.92110606,0.0001289,3]
[339392056,1727550643495,-500.0,0.00012891,2]
[339392057,1727550643505,-2770.88811292,0.00012897,5]
[339392058,1727550643514,-151.0,0.00012897,2]
[339392059,1727550643523,-151.0,0.00012897,2]
[339392060,1727550643532,-1199.82932017,0.00012899,3]
[339392061,1727550643542,-1199.82932017,0.00012899,3]
[339392062,1727550643551,-1000.0,0.00012899,3]
[339392063,1727550643560,-1000.0,0.00012899,6]
[339392064,1727550643570,-512.50774024,0.00012899,2]
[339392065,1727550643580,-205.78423397,0.00012899,2]
[339392066,1727550643590,-3630163.7191327,0.000129,2]
[339392067,1727550643599,-5000.0,0.000129,2]
[339392068,1727550643608,-500.0,0.000129,2]
[339392069,1727550643618,-1638.41,0.000129,2]
[339392070,1727550643627,-500.0,0.000129,2]
[339392071,1727550643636,-300.0,0.000129,2]
[339392072,1727550643647,-150.0,0.000129,2]
[339392073,1727550643657,-150.0,0.000129,2]
[339392074,1727550643667,-150.0,0.000129,2]
[339392075,1727550643676,-150.0,0.000129,2]
[339392076,1727550643685,-150.0,0.000129,2]
[339392077,1727550643694,-151.0,0.000129,2]
[339392078,1727550643703,-500.0,0.000129,2]
[339392079,1727550643712,-500.0,0.000129,2]
[339392080,1727550643722,-160.02043,0.000129,2]
[339392081,1727550643731,-151.0,0.000129,2]
[339392082,1727550643740,-956.037257,0.000129,2]
[339392083,1727550643750,-165.67827754,0.000129,2]
[339392084,1727550643759,-158.36867897,0.000129,2]
[339392085,1727550643768,-158.36867897,0.000129,2]
[339392086,1727550643777,-158.36867897,0.000129,2]
[339392087,1727550643786,-158.86,0.000129,2]
[339392088,1727550643796,-158.46242897,0.000129,2]
[339392089,1727550643805,-158.46242897,0.000129,2]
[339392090,1727550643814,-158.46242897,0.000129,2]
[339392091,1727550643825,-158.46242897,0.000129,2]
[339392092,1727550643834,-158.46242897,0.000129,2]
[339392093,1727550643844,-158.46242897,0.000129,2]
[339392094,1727550643856,-158.46242897,0.000129,2]
[339392095,1727550643865,-158.46242897,0.000129,2]
[339392096,1727550643874,-158.46242897,0.000129,2]
[339392097,1727550643883,-158.46242897,0.000129,2]
[339392098,1727550643895,-158.46242897,0.000129,2]
[339392099,1727550643906,-158.46242897,0.000129,2]
[339392100,1727550643915,-158.46242897,0.000129,2]
[339392101,1727550643925,-158.46242897,0.000129,2]
[339392102,1727550643935,-158.46242897,0.000129,2]
[339392103,1727550643945,-158.96,0.000129,2]
[339392104,1727550643954,-166.91,0.000129,2]
[339392105,1727550643963,-166.79352346,0.000129,2]
[339392106,1727550643972,-166.79352346,0.000129,2]
[339392107,1727550643981,-166.79352346,0.000129,2]
[339392108,1727550643991,-167.29,0.000129,2]
[339392109,1727550644001,-319.92,0.00012909,2]
[339392110,1727550644010,-155.0,0.0001292,2]
[339392111,1727550644020,-151.0,0.00012921,2]
[339392112,1727550644028,-43646.07829677,0.00012921,2]
[339392113,1727550644047,-13442.43320789,0.00012921,2]
[339392121,1727550646494,-250.0,0.00012024,2]
[339392122,1727550646506,-3102.26928,0.00012921,2]
[339392123,1727550646527,-547.51,0.00012921,2]
[339392124,1727550646560,-2069.27223358,0.00012921,2]
[339392125,1727550680609,238.03,0.00010267,2]
[339392126,1727550913039,173.86,0.00010959,2]
[339392129,1727551145132,667.0,0.00022,120]
[339392136,1727551348885,226.12,9.985e-05,2]
[339392178,1727551438568,174.56,0.00010959,2]
[339392179,1727551708362,3924.53499931,0.0001,2]
[339392188,1727551816397,399988.0,0.00021,60]
[339392190,1727551831605,-183.00821368,0.00011777,2]
[339392192,1727551831615,-286.14,0.00011791,2]
[339392194,1727551831624,-227.27,0.00011823,2]
[339392195,1727551831633,-178.86,0.00011828,2]
[339392196,1727551831644,-800.0,0.00011877,2]
[339392197,1727551831653,-250.0,0.00011899,2]
[339392198,1727551831662,-200.0,0.00011912,2]
[339392199,1727551831672,-200.0,0.00011952,2]
[339392200,1727551831680,-263.09,0.00011966,2]
[339392201,1727551831690,-653.43,0.00011991,2]
[339392202,1727551831699,-174.37,0.00012006,2]
[339392203,1727551831709,-226.12,0.00012249,2]
[339392204,1727551831718,-158.15908,0.0001248,2]
[339392205,1727551831727,-172.908724,0.0001248,2]
[339392206,1727551831736,-514.9049,0.00012562,2]
[339392207,1727551831745,-172.908724,0.00012635,2]
[339392208,1727551831934,-1056.08562537,0.00012663,2]
[339392209,1727551831944,-1049.18214456,0.00012663,2]
[339392210,1727551831955,-5005.97157,0.0001275,2]
[339392211,1727551831964,-172.908724,0.00012791,2]
[339392212,1727551831974,-150.0,0.00012795,2]
[339392213,1727551831985,-300.0,0.00012799,2]
[339392214,1727551831994,-1000.0,0.000128,2]
[339392215,1727551832004,-528.35096145,0.000128,2]
[339392216,1727551832013,-342.28097937,0.000128,2]
[339392217,1727551832022,-500.0,0.00012802,2]
[339392218,1727551832031,-2000.0,0.00012876,2]
[339392219,1727551832041,-1135.4443,0.0001288,2]
[339392220,1727551832050,-240.212,0.0001288,2]
[339392221,1727551832059,-185.8073993,0.0001289,2]
[339392222,1727551832068,-778.77196597,0.0001289,2]
[339392223,1727551832078,-151.33,0.0001289,2]
[339392224,1727551832087,-267.30264487,0.0001289,2]
[339392225,1727551832098,-267.30264487,0.0001289,2]
[339392226,1727551832107,-267.30264487,0.0001289,2]
[339392227,1727551832116,-185.80739929,0.00012891,2]
[339392228,1727551832126,-150.0,0.00012892,2]
[339392229,1727551832135,-185.80739929,0.00012892,2]
[339392230,1727551832147,-185.80739929,0.00012893,2]
[339392231,1727551832157,-185.80739929,0.00012894,2]
[339392232,1727551832166,-185.80739929,0.00012896,2]
[339392233,1727551832175,-185.80739929,0.00012897,2]
[339392234,1727551832184,-185.80739929,0.00012898,2]
[339392235,1727551832193,-185.80739929,0.00012899,2]
[339392236,1727551832202,-204.3001,0.00012899,2]
[339392237,1727551832211,-443.558,0.00012899,2]
[339392238,1727551832224,-185.72307797,0.00012899,2]
[339392239,1727551832233,-2090.75679715,0.00012899,2]
[339392240,1727551832243,-358.75541817,0.00012899,2]
[339392241,1727551832254,-1474.57,0.000129,2]
[339392242,1727551832263,-343.89567461,0.000129,2]
[339392243,1727551832272,-14913.9166,0.000129,2]
[339392244,1727551832280,-172.84876673,0.000129,2]
[339392245,1727551832290,-500.0,0.000129,2]
[339392246,1727551832299,-185.80739929,0.000129,2]
[339392247,1727551832308,-185364.97142539,0.000129,2]
[339392248,1727551832320,-940.47405097,0.000129,2]
[339392249,1727551832331,-1709.87048133,0.000129,2]
[339392250,1727551832341,-1451.24090158,0.000129,2]
[339392251,1727551832352,-3737.46316889,0.000129,2]
[339392258,1727551837888,-684.44172718,0.00012642,2]
[339392259,1727551838141,-335.92580449,0.00012642,2]
[339392260,1727551838151,-1164.07419551,0.000129,2]
[339392261,1727551838162,-255.53745705,0.000129,2]
[339392289,1727551839646,-28413.12954961,0.000129,2]
[339392290,1727551839695,-6254.0,0.000129,2]
[339392291,1727551839825,-394.89,0.000129,2]
[339392292,1727551839838,-987.94572,0.000129,2]
[339392293,1727551839849,-294.12974998,0.000129,2]
[339392330,1727551842852,-720.70825157,0.000129,2]
[339392335,1727551845872,-186631.52367123,0.000129,2]
[339392336,1727551845881,-356073.27712501,0.000129,2]
[339392341,1727551890836,230.4,0.00010175,2]
[339392344,1727552007873,155.98,0.00010959,2]
[339392345,1727552300222,1050.0,0.00011,2]
[339392346,1727552485493,233.95,9.997e-05,2]
[339392351,1727552948653,166.66,0.00010959,2]
[339392352,1727552959222,833.34,0.00010959,2]
[339392358,1727553031830,-250.0,0.00011842,2]
[339392359,1727553031839,-210.47,0.00011849,2]
[339392360,1727553031848,-250.0,0.0001185,2]
[339392361,1727553031857,-640.0,0.00011859,2]
[339392362,1727553031866,-176.17,0.00011903,2]
[339392363,1727553031875,-360.0,0.00011925,2]
[339392364,1727553031884,-313.43,0.00012019,2]
[339392365,1727553031893,-233.95,0.00012261,2]
[339392366,1727553031902,-150.0,0.00012466,2]
[339392367,1727553031912,-121.91564522,0.0001248,2]
[339392368,1727553031936,-54.34934178,0.0001248,2]
[339392369,1727553031945,-1026.66103814,0.00012642,2]
[339392370,1727553031954,-1138.67631528,0.00012642,2]
[339392371,1727553031964,-301.54,0.00012642,2]
[339392372,1727553031973,-243.10509471,0.00012709,2]
[339392373,1727553031982,-585.63,0.0001279,2]
[339392374,1727553031991,-1225.17190791,0.0001279,2]
[339392375,1727553032000,-176.264987,0.00012791,2]
[339392376,1727553032010,-150.0,0.00012795,2]
[339392377,1727553032019,-5783.3745,0.000128,2]
[339392378,1727553032028,-533.0938,0.000128,2]
[339392379,1727553032036,-13346.84247979,0.000128,2]
[339392380,1727553032048,-438.58020339,0.000128,2]
[339392381,1727553032058,-1437.62195802,0.000128,2]
[339392394,1727553037840,-987.9,0.000128,2]
[339392395,1727553037852,-287.45330497,0.000128,2]
[339392418,1727553039240,-18158.9353055,0.000128,2]
[339392421,1727553039836,-484.28929845,0.000128,2]
[339392422,1727553040096,-65157.59214988,0.000128,2]
[339392423,1727553040106,-12106.5717,0.000128,2]
[339392424,1727553040115,-305.5086,0.000128,2]
[339392425,1727553040125,-7290.3806,0.000128,2]
[339392426,1727553040134,-190.86438807,0.000128,2]
[339392427,1727553040143,-412.618,0.000128,2]
[339392428,1727553040153,-7471.0,0.000128,2]
[339392429,1727553040162,-2500.0,0.000128,2]
[339392430,1727553040171,-168.62496734,0.000128,2]
[339392431,1727553040180,-354.29980773,0.000128,2]
[339392432,1727553040189,-156.84422594,0.000128,2]
[339392433,1727553040198,-500.0,0.00012818,2]
[339392434,1727553040207,-2000.0,0.00012876,2]
[339392435,1727553040216,-151.73,0.0001289,2]
[339392436,1727553040225,-500.0,0.00012899,2]
[339392437,1727553040234,-500.0,0.00012899,2]
[339392438,1727553040244,-386.6062478,0.00012899,2]
[339392439,1727553040253,-1008.4047,0.00012899,2]
[339392440,1727553040262,-500.0,0.00012899,2]
[339392441,1727553040271,-500.0,0.00012899,2]
[339392442,1727553040280,-500.0,0.00012899,2]
[339392443,1727553040289,-502.01,0.00012899,2]
[339392444,1727553040298,-1000.4426,0.00012899,2]
[339392445,1727553040307,-2004.33664671,0.00012899,2]
[339392446,1727553040316,-220521.87019869,0.000129,2]
[339392447,1727553040325,-1264.92886892,0.000129,2]
[339392448,1727553040336,-300.0,0.000129,2]
[339392457,1727553042816,-20464.29,0.000129,2]
[339392458,1727553042828,-562.6023957,0.000129,2]
[339392459,1727553042870,-1391.96207089,0.000129,2]
[339392460,1727553042925,-267.2758069,0.000129,2]
[339392461,1727553042981,-730.07140233,0.000129,2]
[339392462,1727553042992,-652.62529538,0.000129,2]
[339392463,1727553043003,-548.79774281,0.000129,2]
[339392464,1727553043091,-4246.81921635,0.000129,2]
[339392465,1727553043103,-942.316296,0.000129,2]
[339392466,1727553043114,-18386.04645497,0.000129,2]
[339392467,1727553043125,-13862.52208307,0.000129,2]
[339392468,1727553045757,-734.01641473,0.000129,2]
[339392469,1727553045768,-743.3523116,0.000129,2]
[339392470,1727553045812,-3145.66036694,0.000129,2]
[339392471,1727553045823,-7811.78430333,0.000129,2]
[339392472,1727553045834,-635.39287192,0.000129,2]
[339392473,1727553045846,-3929.113636,0.000129,2]
[339392474,1727553045857,-588.94,0.000129,2]
[339392475,1727553045869,-603.28558204,0.000129,2]
[339392476,1727553045879,-1874.06416438,0.000129,2]
[339392477,1727553045890,-943.31862009,0.000129,2]
[339392478,1727553045901,-1996.88135758,0.000129,2]
[339392479,1727553045921,-812.74759037,0.000129,2]
[339392480,1727553046082,-19148.27129954,0.000129,2]
[339392481,1727553046094,-2610.19070253,0.000129,2]
[339392482,1727553197433,200.0,0.00021095,120]
[339392483,1727553198483,239.5,0.0001002,2]
[339392484,1727553228335,173.8,0.00010959,2]
[339392485,1727553726056,1000.0,0.00022,120]
[339392486,1727553737689,500.0,0.00021,60]
[339392487,1727553775157,173.86,0.00010959,2]
[339392488,1727553779181,227.52,9.659e-05,2]
[339392489,1727554102698,1050.0,0.00011,2]
[339392507,1727554232242,-582.41,0.00011467,2]
[339392508,1727554232273,-1988.43190656,0.00011467,2]
[339392509,1727554232282,-250.0,0.00011514,2]
[339392510,1727554232291,-250.0,0.00011524,2]
[339392511,1727554232301,-487.08,0.00011567,2]
[339392512,1727554232310,-512.0,0.00011571,2]
[339392513,1727554232319,-395.48,0.00011571,2]
[339392514,1727554232330,-516.59,0.00011578,2]
[339392515,1727554232339,-229.19,0.00011594,2]
[339392516,1727554232348,-200.0,0.00011614,2]
[339392517,1727554232357,-274.34,0.00011643,2]
[339392518,1727554232366,-6543.43845499,0.00011725,2]
[339392519,1727554232378,-8341.04154501,0.00011725,2]
[339392521,1727554232388,-352.17,0.00011725,2]
[339392523,1727554232397,-561.92303224,0.00011783,2]
[339392525,1727554232408,-1438.07696776,0.00011783,2]
[339392527,1727554232417,-1081.87744401,0.00011783,2]
[339392603,1727554243015,-357.2177,0.00011783,2]
[339392605,1727554243071,-419.40485599,0.00011783,2]
[339392606,1727554243082,-250.0,0.00011847,2]
[339392607,1727554243092,-76.58814411,0.0001188,2]
[339392608,1727554243105,-74.40185589,0.0001188,2]
[339392609,1727554243115,-167.3,0.00011907,2]
[339392610,1727554243126,-227.52,0.00011923,2]
[339392611,1727554243137,-488.0,0.00011931,2]
[339392612,1727554243148,-1002.53889032,0.00012642,2]
[339392613,1727554243158,-386.42090522,0.00012642,2]
[339392614,1727554243171,-731.17004278,0.00012642,2]
[339392615,1727554243180,-1370.83035722,0.000127,2]
[339392616,1727554243193,-225.46804278,0.000127,2]
[339392617,1727554243203,-582.60751899,0.000127,2]
[339392618,1727554243219,-482.285006,0.000127,2]
[339392619,1727554243237,-1101.76812812,0.000127,2]
[339392620,1727554243248,-256.424324,0.000127,2]
[339392621,1727554243292,-90509.43972289,0.000127,2]
[339392622,1727554243301,-1444.2683,0.000127,2]
[339392623,1727554243311,-1000.0,0.000127,2]
[339392624,1727554243320,-4730.21400995,0.000127,2]
[339392625,1727554243329,-4730.21400989,0.00012722,2]
[339392626,1727554243339,-180.0,0.00012724,2]
[339392627,1727554243348,-324.7673108,0.00012725,2]
[339392628,1727554243358,-4730.21400989,0.00012744,2]
[339392629,1727554243367,-4730.21400989,0.00012767,2]
[339392630,1727554243377,-4730.21400989,0.00012789,2]
[339392631,1727554243386,-150.0,0.00012795,2]
[339392632,1727554243395,-394.369,0.00012798,2]
[339392633,1727554243404,-171.955,0.00012798,2]
[339392634,1727554243413,-158232.2461,0.000128,2]
[339392635,1727554243423,-6707.354,0.000128,2]
[339392636,1727554243432,-323.84644918,0.000128,2]
[339392637,1727554243440,-12672.70966178,0.000128,2]
[339392638,1727554243450,-4730.21400989,0.00012811,2]
[339392639,1727554243459,-500.0,0.00012818,2]
[339392640,1727554243469,-4730.21400989,0.00012833,2]
[339392641,1727554243478,-12672.70966178,0.0001285,2]
[339392642,1727554243487,-4730.21400989,0.00012856,2]
[339392643,1727554243496,-2303.06356739,0.0001287,2]
[339392644,1727554243506,-561.21663832,0.00012873,2]
[339392645,1727554243515,-500.0,0.00012873,2]
[339392646,1727554243524,-500.0,0.00012876,2]
[339392647,1727554243533,-4730.21400989,0.00012878,2]
[339392648,1727554243542,-151.93,0.0001289,2]
[339392649,1727554243551,-1000.0,0.00012899,2]
[339392650,1727554243563,-438.89,0.00012899,2]
[339392651,1727554243572,-183355.29909741,0.000129,2]
[339392652,1727554243583,-1105676.40084586,0.000129,2]
[339392653,1727554245999,-659.48654881,0.000129,2]
[339392654,1727554246054,-276.75,0.000129,2]
[339392655,1727554246066,-606.37577,0.000129,2]
[339392656,1727554246078,-319082.06412571,0.000129,2]
[339392657,1727554246109,-16330.8655342,0.000129,2]
[339392658,1727554246163,-669.58337309,0.000129,2]
[339392659,1727554246174,-37859.12359047,0.000129,2]
[339392660,1727554395617,200.0,0.00020787,120]
[339392661,1727554433192,236.28,9.985e-05,2]
[339392662,1727554578517,200.0,0.00010959,2]
[339392663,1727554634105,174.56,0.00010959,2]
[339392664,1727554806302,151.0,9.985e-05,2]
[339392665,1727554806828,237.0,9.985e-05,2]
[339392666,1727554965690,2191.09039591,0.00021,60]
[339392667,1727554965826,224.46,9.843e-05,2]
[339392668,1727555184023,161.93,0.00010959,2]
[339392669,1727555262647,256.41,9.408e-05,2]
[339392687,1727555432208,-150.00000064,0.00011589,2]
[339392688,1727555432217,-372.38002502,0.00011593,2]
[339392689,1727555432226,-153.71997434,0.00011598,2]
[339392690,1727555432238,-218.66005068,0.00011598,2]
[339392691,1727555432247,-64.8632403,0.00011603,2]
[339392692,1727555432261,-307.51678472,0.00011603,2]
[339392693,1727555432272,-279.97,0.00011694,2]
[339392694,1727555432281,-153.28,0.00011703,2]
[339392695,1727555432290,-165.16,0.00011716,2]
[339392696,1727555432300,-300.0,0.00011721,2]
[339392697,1727555432310,-167.3,0.00011723,2]
[339392698,1727555432321,-299.99,0.00011723,2]
[339392699,1727555432511,-200.0,0.00011748,2]
[339392700,1727555432523,-250.0,0.00011762,2]
[339392701,1727555432533,-432.73,0.00011763,2]
[339392702,1727555432544,-1922.0,0.00011763,2]
[339392704,1727555432553,-23890.0,0.00011765,2]
[339392706,1727555432562,-204.94,0.00011801,2]
[339392707,1727555432571,-1000.0,0.00011911,2]
[339392709,1727555432580,-224.46,0.00012107,2]
[339392711,1727555432590,-150.99,0.00012107,2]
[339392713,1727555432599,-164.43,0.00012184,2]
[339392715,1727555432608,-10000.0,0.00012214,2]
[339392717,1727555432617,-172.908726,0.00012454,2]
[339392719,1727555432626,-150.0,0.00012641,2]
[339392721,1727555432636,-1047.22145983,0.00012642,2]
[339392723,1727555432645,-409.5926,0.000127,2]
[339392724,1727555432653,-150.0,0.00012795,2]
[339392725,1727555432663,-629.8346,0.000128,2]
[339392726,1727555432672,-158.32920976,0.000128,2]
[339392727,1727555432681,-168.26718076,0.000128,2]
[339392728,1727555432690,-164.664,0.000128,2]
[339392729,1727555432699,-188.90231542,0.000128,2]
[339392730,1727555432708,-2234.4463831,0.000128,2]
[339392731,1727555432717,-1219.5522,0.000128,2]
[339392732,1727555432726,-635.58755371,0.000128,2]
[339392733,1727555432735,-164.67766966,0.000128,2]
[339392734,1727555432744,-1000.0,0.000128,2]
[339392735,1727555432753,-323.84644917,0.000128,2]
[339392736,1727555432762,-525.57766066,0.000128,2]
[339392737,1727555432771,-210.77847827,0.000128,2]
[339392738,1727555432780,-2234.44638301,0.00012811,2]
[339392739,1727555432790,-500.0,0.00012818,2]
[339392740,1727555432799,-168.26718074,0.0001282,2]
[339392741,1727555432808,-2234.44638301,0.00012822,2]
[339392742,1727555432817,-300.0,0.0001283,2]
[339392743,1727555432826,-2234.44638301,0.00012833,2]
[339392744,1727555432835,-180.0,0.00012836,2]
[339392745,1727555432844,-168.26718074,0.0001284,2]
[339392746,1727555432854,-2234.44638301,0.00012844,2]
[339392747,1727555432863,-635.58755371,0.0001285,2]
[339392748,1727555432873,-2234.44638301,0.00012856,2]
[339392749,1727555432882,-168.26718074,0.0001286,2]
[339392750,1727555432891,-2234.44638301,0.00012867,2]
[339392751,1727555432901,-420.0,0.00012871,2]
[339392752,1727555432911,-2000.0,0.00012876,2]
[339392753,1727555432923,-500.0,0.00012876,2]
[339392754,1727555432933,-2234.44638301,0.00012878,2]
[339392755,1727555432943,-168.26718074,0.0001288,2]
[339392756,1727555432954,-1006.0,0.0001288,2]
[339392757,1727555432964,-1000.0,0.0001288,2]
[339392758,1727555432973,-1000.0,0.0001288,2]
[339392759,1727555432983,-1000.0,0.0001288,3]
[339392760,1727555432994,-1000.0,0.0001288,3]
[339392761,1727555433004,-1000.0,0.0001288,2]
[339392762,1727555433014,-1000.0,0.0001288,2]
[339392763,1727555433023,-1000.0,0.0001288,2]
[339392764,1727555433032,-1004.0,0.0001288,2]